fUST/lending_fUST_20260218
["ID","MTS","AMOUNT","RATE_DAILY","PERIOD"]
[405895065,1771402259188,-321.78,0.00038356,2]
[405895066,1771402259198,-321.78,0.00038356,2]
[405895067,1771402259209,-321.78,0.00038356,2]
[405895068,1771402259223,-321.78,0.00038356,2]
[405895069,1771402259234,-321.78,0.00038356,2]
[405895070,1771402259245,-321.78,0.00038356,2]
[405895071,1771402259255,-321.78,0.00038356,2]
[405895072,1771402259267,-321.78,0.00038356,2]
[405895073,1771402259280,-321.78,0.00038356,2]
[405895074,1771402259292,-321.78,0.00038356,2]
[405895075,1771402259306,-321.78,0.00038356,2]
[405895076,1771402259319,-321.78,0.00038356,2]
[405895077,1771402259332,-321.78,0.00038356,2]
[405895078,1771402259344,-321.80816339,0.00038356,2]
[405895079,1771402259354,-4022.2,0.00038356,120]
[405895080,1771402259365,-340.83651944,0.00038356,2]
[405895081,1771402259377,-2050.0,0.00038411,5]
[405895082,1771402259389,-177.8330602,0.00038458,120]
[405895083,1771402259402,-1000.0,0.000385,15]
[405895084,1771402259414,-1273.79,0.00038524,60]
[405895085,1771402259425,-3000.0,0.000386,60]
[405895086,1771402259436,-150.0,0.000386,30]
[405895087,1771402259449,-170.0,0.00038745,120]
[405895088,1771402259461,-1000.0,0.000388,15]
[405895089,1771402259473,-14683.14623718,0.00038875,60]
[405895090,1771402259485,-2150.0,0.00038959,5]
[405895091,1771402259496,-15382.16497467,0.00039,2]
[405895092,1771402259507,-500.0,0.00039,120]
[405895093,1771402259517,-10000.0,0.00039,120]
[405895094,1771402259529,-150.0,0.00039,14]
[405895095,1771402259540,-1448.73374911,0.00039,120]
[405895096,1771402259550,-7636.9897619,0.00039,120]
[405895097,1771402259561,-13862.982,0.00039,5]
[405895098,1771402259572,-167.17,0.00039,14]
[405895099,1771402259583,-151.0,0.00039041,120]
[405895100,1771402259593,-1000.0,0.000391,15]
[405895101,1771402259603,-1000.0,0.00039178,5]
[405895102,1771402259613,-153.18,0.00039375,120]
[405895103,1771402259623,-1000.0,0.000394,15]
[405895104,1771402259633,-153.18,0.00039475,120]
[405895105,1771402259644,-158.1593333,0.000395,14]
[405895106,1771402259656,-2250.0,0.00039507,5]
[405895107,1771402259666,-203.54,0.00039516,7]
[405895108,1771402259676,-15063.41068325,0.0003952,7]
[405895109,1771402259686,-177.0,0.00039534,120]
[405895110,1771402259696,-153.18,0.00039575,120]
[405895111,1771402259706,-177.59146076,0.00039626,120]
[405895112,1771402259715,-152.59,0.00039626,120]
[405895113,1771402259725,-223.85709791,0.0003966,2]
[405895114,1771402259736,-153.18,0.00039675,120]
[405895115,1771402259748,-30417.37,0.000397,7]
[405895116,1771402259758,-4022.2,0.00039726,120]
[405895117,1771402259769,-152.59,0.00039726,120]
[405895118,1771402259779,-1000.0,0.00039733,2]
[405895119,1771402259789,-153.18,0.00039775,120]
[405895120,1771402259800,-200.0,0.0003978,120]
[405895121,1771402259809,-277.3,0.000398,30]
[405895122,1771402259819,-163.99,0.00039801,120]
[405895123,1771402259828,-152.59,0.00039826,120]
[405895124,1771402259838,-150.0,0.00039843,120]
[405895125,1771402259848,-153.18,0.00039875,120]
[405895126,1771402259858,-1520.99249154,0.000399,30]
[405895127,1771402259867,-163.99,0.00039901,120]
[405895128,1771402259877,-152.59,0.00039926,120]
[405895129,1771402259889,-200.0,0.00039941,120]
[405895130,1771402259899,-150.00361012,0.00039943,120]
[405895131,1771402259908,-153.18,0.00039975,120]
[405895132,1771402259919,-153.02554482,0.00039984,10]
[405895133,1771402259930,-184.09901649,0.00039984,10]
[405895134,1771402259939,-15197.68307126,0.0004,7]
[405895135,1771402259949,-47653.90827163,0.0004,7]
[405895136,1771402259961,-5000.0,0.0004,2]
[405895137,1771402259971,-500.0,0.0004,2]
[405895138,1771402259983,-210.11915979,0.0004,2]
[405895139,1771402259995,-1813.63742837,0.0004,10]
[405895140,1771402260005,-1501084.1590787,0.0004,120]
[405895141,1771402260015,-300.0,0.0004,120]
[405895142,1771402260026,-1302471.47959866,0.0004,120]
[405895143,1771402429376,160.0,0.000156,120]
[405895146,1771403348143,-150.0,5.783e-05,2]
[405895147,1771403348165,-150.0,5.841e-05,2]
[405895148,1771403348189,-120.39645689,5.9e-05,2]
[405895162,1771403432538,-29.60354311,5.9e-05,2]
[405895163,1771403432547,-177.0,7.9e-05,2]
[405895164,1771403432556,-156.3424831,9.9e-05,2]
[405895165,1771403432565,-205.6772936,0.00012875,2]
[405895166,1771403432574,-300.0,0.00013697,2]
[405895167,1771403432583,-500.0,0.00013797,2]
[405895168,1771403432593,-6011.55718828,0.00013989,2]
[405895170,1771403432602,-3266.0,0.00014011,5]
[405895172,1771403432610,-233.226071,0.00014089,2]
[405895174,1771403432619,-327.76608026,0.00014152,2]
[405895177,1771403432631,-172.23391974,0.00014152,2]
[405895178,1771403432640,-500.0,0.00014152,2]
[405895181,1771403432650,-500.0,0.00014152,2]
[405895183,1771403432659,-500.0,0.00014152,2]
[405895185,1771403432670,-500.0,0.00014152,2]
[405895187,1771403432679,-500.0,0.00014152,2]
[405895189,1771403432689,-496.90241906,0.00014152,2]
[405895191,1771403432700,-3.09758094,0.00014152,2]
[405895193,1771403432710,-500.0,0.00014152,2]
[405895195,1771403432719,-500.0,0.00014152,2]
[405895197,1771403432728,-500.0,0.00014152,2]
[405895199,1771403432740,-608.35946778,0.00014152,2]
[405895201,1771403432749,-500.0,0.00014152,2]
[405895203,1771403432758,-500.0,0.00014153,2]
[405895204,1771403432767,-500.0,0.00014155,2]
[405895205,1771403432776,-3000.0,0.00014156,2]
[405895206,1771403432787,-4146.2509336,0.00014204,2]
[405895207,1771403432796,-500.0,0.00014574,2]
[405895208,1771403432806,-500.0,0.00014574,2]
[405895209,1771403432815,-500.0,0.00014575,2]
[405895210,1771403432824,-500.0,0.00014575,2]
[405895211,1771403432834,-500.0,0.00014575,2]
[405895212,1771403432843,-8432.6449066,0.00014576,2]
[405895213,1771403432852,-4327.69593188,0.00015,7]
[405895214,1771403432862,-420.0,0.00015011,2]
[405895215,1771403432871,-500.0,0.00015193,2]
[405895216,1771403432880,-41191.90279696,0.000156,6]
[405895217,1771403432890,-500.0,0.00015776,2]
[405895218,1771403432899,-160.0,0.00016,5]
[405895220,1771403432908,-1445.56065437,0.00016352,2]
[405895222,1771403432918,-1000.0,0.00016438,2]
[405895224,1771403432927,-527.01228314,0.00016438,2]
[405895226,1771403432936,-577.2,0.00016438,2]
[405895228,1771403432945,-189.44140435,0.00016438,2]
[405895230,1771403432955,-500.0,0.00016438,2]
[405895231,1771403432968,-1000.0,0.00016438,2]
[405895232,1771403432977,-500.0,0.00016438,2]
[405895233,1771403432987,-571.46660127,0.00016438,2]
[405895234,1771403432996,-500.0,0.00016438,2]
[405895235,1771403433005,-500.0,0.00016438,2]
[405895237,1771403433014,-523.39904967,0.00016438,2]
[405895238,1771403433024,-517.81967313,0.00016438,2]
[405895239,1771403433033,-500.0,0.00016438,2]
[405895240,1771403433043,-500.0,0.00016438,2]
[405895242,1771403433052,-623.25694021,0.00016438,2]
[405895243,1771403433061,-500.0,0.00016438,2]
[405895244,1771403433070,-500.0,0.00016438,2]
[405895245,1771403433080,-500.0,0.00016438,2]
[405895246,1771403433089,-381.62699269,0.00016438,2]
[405895247,1771403433099,-219.19235016,0.00016438,2]
[405895248,1771403433109,-500.0,0.00016438,2]
[405895249,1771403433118,-500.0,0.00016438,2]
[405895250,1771403433128,-500.0,0.00016438,2]
[405895251,1771403433137,-550.9817664,0.00016438,2]
[405895252,1771403433146,-500.0,0.00016438,2]
[405895253,1771403433156,-623.96307831,0.00016438,2]
[405895254,1771403433166,-500.0,0.00016438,2]
[405895255,1771403433175,-500.0,0.00016438,2]
[405895256,1771403433184,-359.35115297,0.00016438,2]
[405895257,1771403433194,-500.0,0.00016438,2]
[405895258,1771403433203,-500.0,0.00016438,2]
[405895259,1771403433213,-500.0,0.00016438,2]
[405895260,1771403433224,-519.47369932,0.00016438,2]
[405895261,1771403433233,-500.0,0.00016438,2]
[405895262,1771403433243,-207.8824558,0.00016438,2]
[405895263,1771403433253,-500.0,0.00016438,2]
[405895264,1771403433262,-500.0,0.00016438,2]
[405895265,1771403433271,-562.57667342,0.00016438,2]
[405895266,1771403433280,-500.0,0.00016438,2]
[405895267,1771403433289,-500.0,0.00016438,2]
[405895268,1771403433299,-500.0,0.00016438,2]
[405895269,1771403433309,-3958.33,0.00016438,2]
[405895270,1771403433321,-536.04230063,0.00016438,2]
[405895271,1771403433331,-575.04,0.00016438,2]
[405895272,1771403433340,-500.0,0.00016438,2]
[405895273,1771403433350,-103.30511139,0.0001645,2]
[405895334,1771403446512,-500.0,0.00016438,2]
[405895335,1771403446522,-483.69488861,0.0001645,2]
[405895336,1771403446533,-500.0,0.00016452,2]
[405895337,1771403446544,-1074.42154941,0.00016452,2]
[405895338,1771403446617,-510.96708959,0.00016452,2]
[405895339,1771403446628,-500.0,0.00016711,2]
[405895340,1771403446638,-1000.0,0.00016712,2]
[405895341,1771403446647,-577.2,0.00016712,2]
[405895342,1771403446656,-500.0,0.00016712,2]
[405895343,1771403446665,-1000.0,0.00016712,2]
[405895344,1771403446674,-500.0,0.00016712,2]
[405895345,1771403446683,-365.84660707,0.00016712,2]
[405895346,1771403446692,-170.63426374,0.00016712,2]
[405895347,1771403446701,-500.0,0.00016712,2]
[405895348,1771403446710,-500.0,0.00016712,2]
[405895349,1771403446719,-500.0,0.00016712,2]
[405895350,1771403446728,-500.0,0.00016712,2]
[405895351,1771403446737,-500.0,0.00016712,2]
[405895352,1771403446746,-500.0,0.00016712,2]
[405895353,1771403446755,-500.0,0.00016712,2]
[405895354,1771403446764,-500.0,0.00016712,2]
[405895355,1771403446774,-315.48013913,0.00016712,2]
[405895356,1771403446783,-500.0,0.00016712,2]
[405895357,1771403446792,-500.0,0.00016712,2]
[405895358,1771403446801,-500.0,0.00016712,2]
[405895359,1771403446809,-500.0,0.00016712,2]
[405895360,1771403446819,-500.0,0.00016712,2]
[405895361,1771403446828,-3958.33,0.00016712,2]
[405895362,1771403446837,-575.04,0.00016712,2]
[405895363,1771403446846,-500.0,0.00016712,2]
[405895364,1771403446855,-500.0,0.00016712,2]
[405895365,1771403446864,-26868.00913553,0.00016712,2]
[405895366,1771403446873,-500.0,0.00016933,2]
[405895367,1771403446883,-444.15614471,0.00016981,2]
[405895368,1771403446892,-893.34879453,0.00016986,2]
[405895369,1771403446902,-577.2,0.00016986,2]
[405895370,1771403446911,-500.0,0.00016986,2]
[405895371,1771403446920,-1000.0,0.00016986,2]
[405895372,1771403446929,-500.0,0.00016986,2]
[405895373,1771403446938,-500.0,0.00016986,2]
[405895374,1771403446947,-500.0,0.00016986,2]
[405895375,1771403446956,-373.59768898,0.00016986,2]
[405895376,1771403446966,-500.0,0.00016986,2]
[405895377,1771403446975,-500.0,0.00016986,2]
[405895378,1771403446984,-500.0,0.00016986,2]
[405895379,1771403446993,-500.0,0.00016986,2]
[405895380,1771403447003,-500.0,0.00016986,2]
[405895381,1771403447015,-500.0,0.00016986,2]
[405895382,1771403447025,-500.0,0.00016986,2]
[405895383,1771403447034,-500.0,0.00016986,2]
[405895384,1771403447043,-500.0,0.00016986,2]
[405895385,1771403447053,-500.0,0.00016986,2]
[405895386,1771403447062,-3958.33,0.00016986,2]
[405895387,1771403447072,-575.04,0.00016986,2]
[405895388,1771403447081,-500.0,0.00016986,2]
[405895389,1771403447091,-19713.50605855,0.00017,2]
[405895390,1771403447099,-693.15275367,0.00017145,2]
[405895391,1771403447170,-500.0,0.00016986,2]
[405895392,1771403447179,-22.74365301,0.00017145,2]
[405895397,1771404410131,-172.9639704,0.00011377,2]
[405895398,1771404410150,-86.95287722,0.00011492,2]
[405895429,1771404637656,-150.0,0.00011096,2]
[405895431,1771404637666,-150.0,0.00011208,2]
[405895432,1771404637675,-150.0,0.0001155,2]
[405895433,1771404637684,-172.9639704,0.00011725,2]
[405895434,1771404637693,-500.0,0.00012776,2]
[405895435,1771404637702,-205.16439475,0.00013273,2]
[405895436,1771404637711,-303.51159369,0.00013273,2]
[405895437,1771404637720,-250.69702422,0.0001355,2]
[405895438,1771404637729,-500.0,0.00013697,2]
[405895439,1771404637739,-500.0,0.00013697,2]
[405895440,1771404637750,-91.36958538,0.00013697,2]
[405895441,1771404637762,-408.63041462,0.00013697,2]
[405895442,1771404637771,-500.0,0.00013697,2]
[405895443,1771404637780,-295.38566399,0.00013697,2]
[405895444,1771404637789,-500.0,0.00013697,2]
[405895445,1771404637798,-573.15875872,0.00013697,2]
[405895446,1771404637807,-500.0,0.00013697,2]
[405895447,1771404637816,-500.0,0.00013697,2]
[405895448,1771404637826,-500.0,0.00013697,2]
[405895449,1771404637835,-425.0,0.00013697,2]
[405895450,1771404637843,-300.0,0.00013697,2]
[405895451,1771404637853,-500.0,0.00013698,2]
[405895452,1771404637863,-300.0,0.00013698,2]
[405895453,1771404637872,-908.50102892,0.00013699,2]
[405895454,1771404637884,-519.80121107,0.00013699,2]
[405895462,1771404639805,-580.17429691,0.00013699,2]
[405895472,1771404642838,-3375.5899694,0.00013699,2]
[405895473,1771404642849,-316.37699428,0.00013699,2]
[405895475,1771404642858,-380.26547734,0.00013699,2]
[405895476,1771404642867,-500.0,0.00013699,2]
[405895477,1771404642877,-178.70660753,0.00013699,2]
[405895478,1771404642887,-500.0,0.00014152,2]
[405895479,1771404642898,-671.35909858,0.00014725,2]
[405895480,1771404642908,-500.0,0.00014877,2]
[405895481,1771404642918,-500.0,0.00014999,2]
[405895482,1771404642927,-420.0,0.0001501,2]
[405895483,1771404642937,-500.0,0.00015599,2]
[405895484,1771404642946,-132.00906701,0.00015599,2]
[405895494,1771404645565,-367.99093299,0.00015599,2]
[405895495,1771404645574,-5644.74734915,0.00016338,2]
[405895496,1771404645583,-500.0,0.00016437,2]
[405895497,1771404645592,-500.0,0.00016437,2]
[405895498,1771404645601,-500.0,0.00016437,2]
[405895499,1771404645610,-500.0,0.00016438,2]
[405895500,1771404645619,-1000.0,0.00016438,2]
[405895501,1771404645628,-500.0,0.00016438,2]
[405895502,1771404645637,-500.0,0.00016438,2]
[405895503,1771404645646,-500.0,0.00016438,2]
[405895504,1771404645656,-865.8,0.00016438,2]
[405895505,1771404645665,-500.0,0.00016438,2]
[405895506,1771404645674,-165.88822789,0.00016438,2]
[405895507,1771404645685,-334.11177211,0.00016438,2]
[405895508,1771404645694,-714.43,0.00016438,2]
[405895509,1771404645704,-500.0,0.00016438,2]
[405895510,1771404645712,-500.0,0.00016438,2]
[405895511,1771404645721,-500.0,0.00016438,2]
[405895512,1771404645730,-500.0,0.00016438,2]
[405895513,1771404645739,-705.44,0.00016438,2]
[405895514,1771404645749,-500.0,0.00016438,2]
[405895515,1771404645758,-3463.54,0.00016438,2]
[405895516,1771404645767,-500.0,0.00016438,2]
[405895517,1771404645777,-500.0,0.00016438,2]
[405895518,1771404645787,-914.64,0.00016438,2]
[405895519,1771404645796,-500.0,0.00016438,2]
[405895520,1771404645805,-587.0,0.00016449,2]
[405895521,1771404645814,-450.67,0.00016711,2]
[405895522,1771404645823,-500.0,0.00016712,2]
[405895523,1771404645832,-1000.0,0.00016712,2]
[405895524,1771404645841,-500.0,0.00016712,2]
[405895525,1771404645850,-563.74385413,0.00016712,2]
[405895526,1771404645859,-500.0,0.00016712,2]
[405895527,1771404645870,-865.8,0.00016712,2]
[405895528,1771404645880,-500.0,0.00016712,2]
[405895529,1771404645890,-500.0,0.00016712,2]
[405895530,1771404645899,-714.43,0.00016712,2]
[405895531,1771404645911,-500.0,0.00016712,2]
[405895532,1771404645921,-500.0,0.00016712,2]
[405895533,1771404645931,-500.0,0.00016712,2]
[405895534,1771404645941,-500.0,0.00016712,2]
[405895535,1771404645950,-705.44,0.00016712,2]
[405895536,1771404645959,-500.0,0.00016712,2]
[405895537,1771404645973,-3463.54,0.00016712,2]
[405895538,1771404645983,-500.0,0.00016712,2]
[405895539,1771404645993,-500.0,0.00016712,2]
[405895540,1771404646003,-914.64,0.00016712,2]
[405895541,1771404646014,-500.0,0.00016712,2]
[405895542,1771404646023,-918.4023698,0.00016846,2]
[405895543,1771404646032,-153.98576614,0.00016985,2]
[405895544,1771404646043,-353.12353366,0.00016985,2]
[405895545,1771404646051,-500.0,0.00016986,2]
[405895546,1771404646060,-1000.0,0.00016986,2]
[405895547,1771404646069,-500.0,0.00016986,2]
[405895548,1771404646078,-500.0,0.00016986,2]
[405895549,1771404646087,-865.8,0.00016986,2]
[405895550,1771404646096,-500.0,0.00016986,2]
[405895551,1771404646105,-500.0,0.00016986,2]
[405895552,1771404646115,-714.43,0.00016986,2]
[405895553,1771404646126,-500.0,0.00016986,2]
[405895554,1771404646136,-500.0,0.00016986,2]
[405895555,1771404646147,-500.0,0.00016986,2]
[405895556,1771404646158,-500.0,0.00016986,2]
[405895557,1771404646168,-705.44,0.00016986,2]
[405895558,1771404646178,-500.0,0.00016986,2]
[405895559,1771404646295,-3463.54,0.00016986,2]
[405895560,1771404646305,-500.0,0.00016986,2]
[405895561,1771404646315,-624.3572982,0.00016986,2]
[405895562,1771404646325,-914.64,0.00016986,2]
[405895563,1771404646334,-500.0,0.00016986,2]
[405895564,1771404646343,-869.49223232,0.00017145,2]
[405895565,1771404646352,-2123.45214442,0.00017236,2]
[405895587,1771405614268,-152.15321592,0.00012298,2]
[405895616,1771405831615,-933.0,0.00011932,2]
[405895618,1771405831628,-329.26489151,0.00011932,2]
[405895620,1771405831637,-813.41810743,0.00014524,2]
[405895621,1771405831647,-251.97597642,0.00015031,2]
[405895622,1771405831658,-233.2260719,0.00015755,2]
[405895623,1771405831668,-465.77295565,0.00016438,2]
[405895624,1771405831677,-106.34199709,0.00016709,2]
[405895662,1771405837928,-572.260004,0.00011813,2]
[405895663,1771405837940,-333.70750141,0.00011813,2]
[405895749,1771405845769,-423.57237177,0.00011695,2]
[405895750,1771405845779,-356.2973861,0.00011813,2]
[405895751,1771405845788,-193.65800291,0.00016709,2]
[405895752,1771405845797,-216.8222419,0.0001671,2]
[405895754,1771405845808,-83.1777581,0.0001671,2]
[405895755,1771405845817,-319.39248493,0.0001671,2]
[405895756,1771405845826,-174.79541763,0.0001671,2]
[405895757,1771405845835,-177.28415072,0.0001671,2]
[405895758,1771405845844,-325.0,0.0001671,2]
[405895759,1771405845853,-793.28018862,0.00016711,2]
[405895809,1771406210109,-713.0,0.000154,2]
[405895862,1771407031868,-1095.0,0.00011909,2]
[405895863,1771407031877,-500.0,0.00012774,2]
[405895864,1771407031887,-469.07751181,0.00015,2]
[405895865,1771407031898,-2820.49004895,0.00015,2]
[405895866,1771407031908,-1200.0,0.00016201,2]
[405895867,1771407031917,-240.22381904,0.00016202,2]
[405895894,1771407038019,-32303.34668194,0.00016102,2]
[405895895,1771407038031,-9481.70531241,0.00016102,2]
[405895906,1771407043529,-518.09003622,0.00015941,2]
[405895909,1771407045901,-500.60659941,0.00015941,2]
[405895923,1771408012099,-249.14048445,0.00015148,2]
[405895989,1771408238120,-396.85951555,0.00014847,2]
[405895991,1771408238131,-396.85951555,0.00014997,2]
[405895993,1771408238142,-500.0,0.00015825,2]
[405895995,1771408238153,-500.0,0.0001588,2]
[405895997,1771408238164,-500.0,0.00015935,2]
[405895999,1771408238176,-688.8017773,0.0001597,2]
[405896001,1771408238186,-269.34790184,0.00015989,2]
[405896004,1771408238199,-230.65209816,0.00015989,2]
[405896006,1771408238210,-1200.0,0.00015993,2]
[405896008,1771408238221,-300.0,0.00015994,2]
[405896010,1771408238232,-300.0,0.00015994,2]
[405896012,1771408238243,-300.0,0.00015994,2]
[405896015,1771408238254,-300.0,0.00015994,2]
[405896017,1771408238265,-322.27164099,0.00015994,2]
[405896019,1771408238276,-500.0,0.00015994,2]
[405896021,1771408238287,-500.0,0.00015994,2]
[405896023,1771408238297,-500.0,0.00015994,2]
[405896025,1771408238307,-500.0,0.00015994,2]
[405896028,1771408238318,-135.60005086,0.00015994,2]
[405896030,1771408238331,-364.39994914,0.00015994,2]
[405896032,1771408238342,-500.0,0.00015994,2]
[405896034,1771408238352,-500.0,0.00015994,2]
[405896037,1771408238366,-500.0,0.00015994,2]
[405896039,1771408238377,-500.0,0.00015994,2]
[405896041,1771408238388,-500.0,0.00015994,2]
[405896043,1771408238398,-500.0,0.00015994,2]
[405896045,1771408238408,-500.0,0.00015994,2]
[405896047,1771408238419,-500.0,0.00015994,2]
[405896062,1771408238548,-500.0,0.00015994,2]
[405896064,1771408238597,-509.27258664,0.00015994,2]
[405896065,1771408238610,-500.0,0.00015994,2]
[405896066,1771408238619,-500.0,0.00015994,2]
[405896067,1771408238628,-500.0,0.00015994,2]
[405896068,1771408238638,-500.0,0.00015994,2]
[405896069,1771408238650,-500.0,0.00015994,2]
[405896070,1771408238659,-500.0,0.00015994,2]
[405896071,1771408238668,-488.19066637,0.00015994,2]
[405896072,1771408238678,-500.0,0.00015994,2]
[405896073,1771408238695,-500.0,0.00015994,2]
[405896074,1771408238704,-500.0,0.00015994,2]
[405896075,1771408238713,-500.0,0.00015994,2]
[405896076,1771408238723,-500.0,0.00015994,2]
[405896077,1771408238732,-500.0,0.00015994,2]
[405896078,1771408238741,-500.0,0.00015994,2]
[405896079,1771408238750,-500.0,0.00015994,2]
[405896080,1771408238759,-500.0,0.00015994,2]
[405896081,1771408238768,-500.0,0.00015994,2]
[405896082,1771408238778,-500.0,0.00015994,2]
[405896083,1771408238788,-438.01122419,0.00015994,2]
[405896084,1771408238797,-500.0,0.00015994,2]
[405896085,1771408238807,-500.0,0.00015994,2]
[405896086,1771408238816,-355.74295312,0.00015994,2]
[405896087,1771408238826,-500.0,0.00015994,2]
[405896088,1771408238836,-500.0,0.00015994,2]
[405896089,1771408238846,-500.0,0.00015994,2]
[405896090,1771408238855,-500.0,0.00015994,2]
[405896091,1771408238865,-500.0,0.00015994,2]
[405896092,1771408238874,-500.0,0.00015994,2]
[405896093,1771408238883,-500.0,0.00015994,2]
[405896094,1771408238893,-500.0,0.00015994,2]
[405896095,1771408238903,-500.0,0.00015994,2]
[405896096,1771408238912,-500.0,0.00015994,2]
[405896097,1771408238921,-500.0,0.00015994,2]
[405896098,1771408238931,-500.0,0.00015994,2]
[405896099,1771408238940,-500.0,0.00015994,2]
[405896100,1771408238949,-500.0,0.00015994,2]
[405896101,1771408238959,-500.0,0.00015994,2]
[405896102,1771408238969,-500.0,0.00015994,2]
[405896103,1771408238978,-500.0,0.00015994,2]
[405896104,1771408238987,-500.0,0.00015994,2]
[405896105,1771408238998,-500.0,0.00015994,2]
[405896106,1771408239007,-500.0,0.00015994,2]
[405896107,1771408239017,-500.0,0.00015994,2]
[405896108,1771408239027,-500.0,0.00015994,2]
[405896109,1771408239037,-500.0,0.00015994,2]
[405896110,1771408239047,-500.0,0.00015994,2]
[405896111,1771408239056,-500.0,0.00015994,2]
[405896112,1771408239066,-500.0,0.00015994,2]
[405896113,1771408239076,-500.0,0.00015994,2]
[405896114,1771408239087,-500.0,0.00015994,2]
[405896115,1771408239097,-500.0,0.00015994,2]
[405896116,1771408239106,-500.0,0.00015994,2]
[405896117,1771408239116,-500.0,0.00015994,2]
[405896118,1771408239126,-500.0,0.00015994,2]
[405896119,1771408239135,-500.0,0.00015994,2]
[405896120,1771408239145,-500.0,0.00015994,2]
[405896121,1771408239154,-500.0,0.00015994,2]
[405896122,1771408239163,-500.0,0.00015994,2]
[405896123,1771408239173,-500.0,0.00015994,2]
[405896124,1771408239183,-500.0,0.00015994,2]
[405896125,1771408239192,-500.0,0.00015994,2]
[405896126,1771408239202,-500.0,0.00015994,2]
[405896127,1771408239212,-500.0,0.00015994,2]
[405896128,1771408239222,-635.21269523,0.00015994,2]
[405896129,1771408239231,-500.0,0.00015994,2]
[405896130,1771408239241,-500.0,0.00015994,2]
[405896131,1771408239250,-500.0,0.00015994,2]
[405896132,1771408239260,-500.0,0.00015994,2]
[405896133,1771408239269,-300.0,0.00015996,2]
[405896134,1771408239279,-1572.61386357,0.00015997,2]
[405896135,1771408239288,-151.0,0.00015999,2]
[405896136,1771408239298,-500.0,0.00016044,2]
[405896137,1771408239307,-500.0,0.00016099,2]
[405896138,1771408239316,-500.0,0.00016099,2]
[405896139,1771408239325,-500.0,0.00016154,2]
[405896140,1771408239335,-522.75139377,0.00016404,2]
[405896141,1771408239344,-500.0,0.00016404,2]
[405896142,1771408239354,-505.167713,0.00016404,2]
[405896143,1771408239363,-500.0,0.00016404,2]
[405896144,1771408239372,-500.0,0.00016404,2]
[405896145,1771408239382,-500.0,0.00016404,2]
[405896146,1771408239391,-750.0,0.00016428,2]
[405896147,1771408239400,-750.0,0.00016428,2]
[405896148,1771408239409,-261.23015873,0.00016428,2]
[405896149,1771408239418,-500.0,0.00016437,2]
[405896150,1771408239428,-500.0,0.00016438,2]
[405896151,1771408239440,-684.56285518,0.00016438,2]
[405896152,1771408239450,-202.53068406,0.00016438,2]
[405896153,1771408239459,-500.0,0.00016438,2]
[405896154,1771408239469,-513.69797955,0.00016438,2]
[405896155,1771408239478,-500.0,0.00016438,2]
[405896156,1771408239490,-6.74343735,0.00016438,2]
[405896166,1771408243641,-5843.47438014,0.00016274,2]
[405896167,1771408243652,-616.3279564,0.00016274,2]
[405896168,1771408243662,-6966.96844377,0.00016338,2]
[405896169,1771408243672,-1115.70656265,0.00016438,2]
[405896170,1771408243681,-500.0,0.00016438,2]
[405896171,1771408243690,-336.58577389,0.00016438,2]
[405896172,1771408243700,-500.0,0.00016438,2]